Cogmind - Beta 9.6 @@@ ROGUE MODE // 2020.05.10 @ 14:43:30 Player: alice_fexa Result: Destroyed by as-60315 with Assembled F-torch Performance ------------- Evolutions (0) 0 Regions Visited (0) 0 Robots Destroyed (4) 20 Value Destroyed (7) 7 Prototype IDs (0) 0 Alien Tech Used (0) 0 Bonus (0) 0 TOTAL SCORE: 27 Bonus ------- None Cogmind --------- Core Integrity 0/250 Matter 300/300 Energy 100/100 System Corruption 8% Temperature Cool (20) Movement Core (50) Location -11/Scrapyard Parts ------- > --- POWER (1) -------- (None) > --- PROPULSION (2) --- (None) > --- UTILITY (2) ------ (None) > --- WEAPON (2) ------- (None) > --- INVENTORY (4) ---- Light Ion Engine Wheel Peak State ------------ > --- POWER ------------ Light Ion Engine > --- PROPULSION ------- Light Treads Compact Wheel > --- UTILITY ---------- Small Storage Unit > --- WEAPON ----------- EM Pulse Gun Medium Laser > --- INVENTORY -------- Light Ion Engine Light Treads Wheel Medium Laser [Rating: 6] Favorites ----------- Power Light Ion Engine Engine Light Ion Engine Propulsion Compact Wheel Treads Light Treads Wheel Compact Wheel Utility Small Storage Unit Storage Small Storage Unit Weapon EM Pulse Gun Energy Gun EM Pulse Gun Build | -11 ------- Run | Scr Slots Evolved . | . Power . | . Propulsion . | . Utility . | . Weapon . | . Parts Attached 9 | 9 Power 1 | 1 Engine 1 | 1 Core . | . Reactor . | . Propulsion 3 | 3 Treads 2 | 2 Leg . | . Wheel 1 | 1 Hover . | . Flight . | . Utility 1 | 1 Device . | . Storage 1 | 1 Processor . | . Hackware . | . Protection . | . Artifact . | . Weapon 4 | 4 Energy Gun 4 | 4 Energy Cannon . | . Ballistic Gun . | . Ballistic Cannon . | . Launcher . | . Special Weapon . | . Impact Weapon . | . Slashing Weapon . | . Piercing Weapon . | . Special Melee Weapon . | . Unidentified Prototypes . | . Parts Lost 5 | 5 Power . | . Propulsion 2 | 2 Utility . | . Weapon 3 | 3 Highest Loss Streak 2 | 2 Average Slot Usage (%) . | . Naked Turns . | . Heaviest Build 11 | 11 Greatest Support 20 | 20 Greatest Overweight (x) . | . Average Overweight (x) . | . Largest Inventory Capacity 6 | 6 Average Capacity 5 | 5 Most Carried 4 | 4 Average Carried 3 | 3 Final Capacity 4 | 4 Final Carried 2 | 2 Class Distribution -------------------- None Dominant Class ---------------- None Resources | -11 ----------- Run | Scr Matter Collected 250 | 250 Remotely . | . Salvage Created 82 | 82 Parts 3 | 3 Haulers Intercepted . | . Recyclers Shooed . | . Parts Field Recycled . | . Retrieved Matter . | . Parts Self-Destructed . | . Prevented . | . Kills | -11 ------- Run | Scr Combat Hostiles Destroyed 3 | 3 Guns 3 | 3 Classes Destroyed 2 | 2 Tunneler 1 | 1 Assembled 3 | 3 Best Kill Streak 3 | 3 Combat Bots Only 1 | 1 Max Kills in Single Turn 1 | 1 Gunslinging . | . Exploded . | . Melee . | . Uniques/NPCs Destroyed . | . Combat | -11 -------- Run | Scr Damage Taken 680 | 680 Core 258 | 258 Absorbed by Shields . | . Core Remaining (%) . | . Volleys Fired 26 | 26 Largest 2 | 2 Hottest 90 | 90 Shots Fired 36 | 36 Gun 36 | 36 Cannon . | . Launcher . | . Special . | . Kinetic . | . Thermal 10 | 10 Explosive . | . Electromagnetic 26 | 26 Robot Hit Streak 5 | 5 Robot Miss Streak 4 | 4 Penetration Max . | . Secondary Targets . | . Shots Hit Robots 17 | 17 Core Hits 13 | 13 Critical Hits . | . Critical Kills . | . Critical Parts Destroyed . | . Melee Attacks . | . Impact . | . Slashing . | . Piercing . | . Sneak Attacks . | . Combat Hostiles . | . Follow-up Attacks . | . Damage Inflicted 281 | 281 Guns 210 | 210 Cannons . | . Explosions 64 | 64 Melee . | . Ramming 7 | 7 Kinetic . | . Thermal 114 | 114 Explosive . | . Electromagnetic 160 | 160 Impact . | . Slashing . | . Piercing . | . Highest Corruption 8 | 8 Average Corruption 8 | 8 Corruption Purged . | . Overload Shots . | . Overflow Damage . | . Projectiles . | . Explosions . | . Melee . | . Knockbacks . | . Impact . | . Kinetic . | . Secondary . | . Self-Inflicted Damage . | . Shots . | . Rammed 7 | 7 Targets Rammed 7 | 7 Kicked . | . Crushed . | . Highest Temperature 340 | 340 Average Temperature 189 | 189 Received Heat Transfer 180 | 180 Effects 3 | 3 Shutdowns 1 | 1 Energy Bleed 2 | 2 Siege Activations . | . Robots Corrupted . | . Combat Hostiles . | . Parts Fried . | . Impact Corruptions . | . Robots Melted . | . Combat Hostiles . | . Parts Melted . | . Heat Transferred 248 | 248 Parts Sabotaged . | . Parts Stolen . | . Parts Stripped . | . Power Chain Reactions 1 | 1 Missiles Intercepted . | . Alert | -11 ------- Run | Scr Peak Influence 60 | 60 Average Influence . | . Maximum Alert Level . | . Low Security (%) 100 | 100 Level 1 . | . Level 2 . | . Level 3 . | . Level 4 . | . Level 5 . | . High Security . | . Max Security . | . Squads Dispatched . | . Investigation . | . Extermination . | . Reinforcement . | . Assault . | . Garrison . | . Intercept . | . Construction Impeded . | . Haulers Reinforced . | . Stealth | -11 --------- Run | Scr Distress Signals . | . Communications Jammed . | . Distress Signals . | . Times Spotted 16 | 16 Peak Tracking Total 9 | 9 Tactical Retreats 2 | 2 Traps | -11 ------- Run | Scr Traps Triggered . | . Indirectly . | . Trap Hack Attempts . | . Triggered . | . Disarmed . | . Reprogrammed . | . Reused . | . Traps Extracted . | . Installed . | . Triggered . | . Machines | -11 ---------- Run | Scr Machines Disabled . | . Max in Single Turn . | . Machines Sabotaged . | . Garrisons Compromised . | . Overloaded Fab Kills . | . Fab Network Shutdowns . | . Hacking | -11 --------- Run | Scr Machines Accessed . | . Terminals . | . Fabricators . | . Repair Stations . | . Recycling Units . | . Scanalyzers . | . Garrison Access . | . Total Hacks . | . Successful . | . Failed . | . Catastrophic . | . Database Lockouts . | . Manual . | . Terminals . | . Fabricators . | . Repair Stations . | . Recycling Units . | . Scanalyzers . | . Garrison Access . | . Terminal Hacks . | . Fabricator Hacks . | . Repair Station Hacks . | . Recycling Unit Hacks . | . Scanalyzer . | . Garrison Access Hacks . | . Unauthorized Hacks . | . Terminals . | . Fabricators . | . Repair Stations . | . Recycling Units . | . Scanalyzers . | . Garrison Access . | . Data Cores Recovered . | . Used . | . Hacking Detections . | . Full Trace Events . | . Feedback Events . | . Feedback Blocked . | . Robot Schematics Acquired . | . Robots Built . | . Matter . | . Time . | . Total Robot Build Rating . | . Part Schematics Acquired . | . Parts Built . | . Matter . | . Time . | . Total Part Build Rating . | . Parts Repaired . | . Time . | . Parts Recycled . | . Recycled Matter . | . Retrieved Matter . | . Retrieved Components . | . Parts Scanalyzed . | . Part Schematics Acquired . | . Parts Damaged . | . Bothacking | -11 ------------ Run | Scr Used RIF Installer . | . Robots Hacked . | . Non-combat . | . Combat . | . Robot Hacks Applied . | . Relay Couplers Released . | . Robots Rewired . | . Allies Hacked . | . Hacks Repelled . | . Allies | -11 -------- Run | Scr Total Allies . | . Largest Group . | . Highest-Rated Group . | . Highest-Rated Ally . | . Total Orders . | . Ally Attacks . | . Total Damage . | . Kills . | . Allies Corrupted . | . Allies Melted . | . Intel | -11 ------- Run | Scr Robot Analysis Total . | . Derelict Logs Recovered . | . Drone Launches . | . Drone Recoveries . | . Exploration | -11 ------------- Run | Scr Turns Passed 2071 | 2071 Spaces Moved 321 | 321 Core 50 | 50 Treads 1 | 1 Legs . | . Wheels 270 | 270 Hover . | . Flight . | . Fastest Speed 50 | 50 Average Speed 92 | 92 Slowest Speed 160 | 160 Overloaded Moves . | . Propulsion Burnouts . | . Robots Hopped . | . Cave-ins Triggered . | . Exploration Rate (%) 47 | 47 Regions Visited . Branch Regions . Pre-discovered Areas . | . Known Exits Taken . | . Unknown Exits Taken . | . Scrap Searched . | . Spaces Dug . | . Terrain Destroyed 4 | 4 Melee . | . Projectile . | . AOE 4 | 4 Actions | -11 --------- Run | Scr Total 2051 | 2051 Wait 1684 | 1684 Move 321 | 321 Hop . | . Pick Up 4 | 4 Fast Attach 7 | 7 Attach 2 | 2 Detach . | . Swap . | . Drop . | . Fire 26 | 26 Melee . | . Ram . | . Kick . | . Crush 7 | 7 Escape Stasis . | . Rewire . | . Trap . | . Miscellaneous . | . Route ------- -11/Scrapyard (discovered 1 exit: [*Mat]) History --------- Turn | Location | Event 12 | -11/Scrapyard | Discovered new exit (range 14) 1914 | -11/Scrapyard | Assembled infested the area 2017 | -11/Scrapyard | Core integrity fell below 50% 2054 | -11/Scrapyard | Released all parts (3) 2056 | -11/Scrapyard | Core integrity fell below 20% 2072 | -11/Scrapyard | Destroyed by as-60315 with Assembled F-torch Last Messages --------------- 01988_ Overheating: Energy bleed (-23). 01997_ as-41118 destroyed. 02002_ Med. Laser destroyed. 02004_ Power failure, Lgt. Ion Engine shutdown. 02004_ Lgt. Treads destroyed. 02014_ Chain reaction triggered in Lgt. Ion Engine. 02014_ T-07 Excavator destroyed. 02017_ Overheating: Energy bleed (-16). 02022_ as-72515 misfires. 02022_ as-72515 destroyed. 02027_ Acquired 20 matter. 02029_ Acquired 16 matter. 02040_ Com. Wheel destroyed. 02040_ EM Pulse Gun destroyed. 02040_ System corrupted by crushing effect (+3). 02040_ System corrupted by crushing effect (+5). 02043_ Slammed into as-18917. 02054_ Released Sml. Storage Unit. 02054_ Released Lgt. Ion Engine. 02054_ Released Lgt. Treads. Map ----- +----------------------------------------------------+ | ?????????????????????????????????? # ???????? | | ??????????????????????????????????? ????????? | | ???????????????????????????????????? ?????????? | | ?????????????????????????????######## ########??? | | ?????????????????????????????# # # #??? | | ?????????????????????????????# # # #??? | | ?????????????????????????????# #??? | | ?????????????????????# #### # # #??? | | ?????????????????????# # # #??? | | ?????????????????????# #### # # #??? | | ?????????????????????#???????######## ########### | | ????????????????????????????????????# #??# | | ????????????????????????????????????# #??# | | ##############??????????????????????# #??# | | # #??????????????????????# #??# | | # #??????????????????????# #??# | | # ????????????????????#### #### | | # ???????##########???# # | | # #???????# #???# # | | #? #???????# #???# ### ## # | | ### ###### ########## ##### # | | = %=# | | = # %*%# | | ########## ###### ###aa a ##### < # %!# | | #?# ## # #???# # # | | #?# ## # @ #???########## # | | #?# ## #### ################# ! =# | | #?# ## #??# ## %|%! *% | | #?# ## #??# ## ######## = ! | | #?# ## #??# ## #??????## # # # | | #?######### #??#* ## #???????# ### | | #?????????# #??#% ## #???????# #?? | | ## ###?????????# #?##%a## #?????#?# #?? | | # #################### ! ### ### #?# #?? | | *%! a = #?# #?? | | # ! %! #?# #?? | | ###################### ### ### #?########?? | | #????????????????????## ###? ?? ##??????????? | | #???????????????????? ??? #?? #???????????? | | #?????????????????? ??? #???#???????????? | | #???????????????? ??# #???????????????? | | #???????????????# ??# #???????????????? | | ##???????????????# ??# #???????????????? | | ?????????????????#? ??# #???????????????? | | ?????????????????? ??# #???????????????? | | ?????????????????# ??# #???????????????? | | ?????????????????#########???#####???????????????? | | ?????????????????????????????????????????????????? | | ?????????????????????????????????????????????????? | | ?????????????????????????????????????????????????? | +----------------------------------------------------+ Best States ------------- Heat Dissipation 25 Energy Generation 10 Energy Capacity 125 Matter Stores 300 Matter Capacity 300 Sight Range 16 Terrain Scan Density 10 Evasion (%) 50 Recoil Reduction 1 Item Schematics ----------------- None Robot Schematics ------------------ None Fabricated ------------ Nothing Alien Tech Used ----------------- None Achievements -------------- None Challenges ------------ None Game ------ Seed GammaCoreShifter Manual? 0 Play Time 00:07:28 Cumulative 843.8 hours Start 2020.05.10 @ 14:39:41 End 2020.05.10 @ 14:43:30 Sessions 0 Manual Loads 0 Difficulty Rogue Special Mode None Game No. 704 Rogue 664 Adventurer 40 Explorer 0 Win Type - Total 84 Types 52/2/21/2/1/2/4 Lore% 93 Gallery% 97 Achievement% 79 Wizard Run 0 Options --------- ASCII 0 Keyboard 0 Movement Numpad Keybinds 0 Fullscreen 0 Font 16/Terminus Map View 76x50 Tactical HUD 1 Map Filters NONE Filters NONE Steam 1 RUN: 1ef5ba96-9eaa-4cc0-abda-b9be7bc4f92c